[Event "Open Cappelle-la-Grande"]
[Date "2025.02.17"]
[White "Tahay, Alexis"]
[Black "Girel, Joseph"]
[WhiteElo "2386"]
[BlackElo "2484"]
[Round "4.4.7"]
[Result "1-0"]
[TimeControl "40/5400+30:1800+30"]

1. e4 {[%clk 1:27:26]} 1... e5 {[%clk 1:27:09]} 2. Nf3 {[%clk 1:27:48]} 2... Nc6
{[%clk 1:27:28]} 3. Bb5 {[%clk 1:28:05]} 3... a6 {[%clk 1:27:21]} 4. Ba4 {[%clk
1:28:30]} 4... Nf6 {[%clk 1:27:30]} 5. O-O {[%clk 1:28:35]} 5... d6 {[%clk
1:27:05]} 6. Qe2 {[%clk 1:27:36]} 6... Bd7 {[%clk 1:19:17]} 7. c3 {[%clk
1:21:03]} 7... g6 {[%clk 1:07:50]} 8. d4 {[%clk 1:21:03]} 8... Bg7 {[%clk
0:58:01]} 9. dxe5 {[%clk 1:11:00]} 9... Nxe5 {[%clk 0:54:58]} 10. Nxe5 {[%clk
1:11:13]} 10... dxe5 {[%clk 0:54:50]} 11. Bb3 {[%clk 1:07:09]} 11... Bc6 {[%clk
0:52:04]} 12. Nd2 {[%clk 1:06:08]} 12... Qe7 {[%clk 0:52:07]} 13. f3 {[%clk
1:00:13]} 13... Nh5 {[%clk 0:48:02]} 14. g3 {[%clk 0:58:59]} 14... O-O-O {[%clk
0:46:37]} 15. Nc4 {[%clk 0:52:39]} 15... Kb8 {[%clk 0:39:45]} 16. Be3 {[%clk
0:50:37]} 16... f5 {[%clk 0:30:33]} 17. Na5 {[%clk 0:35:55]} 17... Bd7 {[%clk
0:26:43]} 18. Bd5 {[%clk 0:28:15]} 18... c6 {[%clk 0:24:10]} 19. Bxc6 {[%clk
0:28:39]} 19... Bxc6 {[%clk 0:24:01]} 20. Qxa6 {[%clk 0:29:05]} 20... Qc7 {[%clk
0:13:41]} 21. Qa7+ {[%clk 0:23:00]} 21... Kc8 {[%clk 0:14:08]} 22. Nc4 {[%clk
0:18:17]} 22... Kd7 {[%clk 0:13:51]} 23. Bb6 {[%clk 0:16:39]} 23... Qb8 {[%clk
0:13:16]} 24. Qa5 {[%clk 0:15:43]} 24... Ke6 {[%clk 0:12:30]} 25. Bc7 {[%clk
0:14:19]} 25... Qa8 {[%clk 0:09:02]} 26. Qc5 {[%clk 0:14:10]} 26... Kf7 {[%clk
0:07:03]} 27. Bxd8 {[%clk 0:12:27]} 27... Rxd8 {[%clk 0:07:00]} 28. Rad1 {[%clk
0:08:41]} 28... Rxd1 {[%clk 0:04:53]} 29. Rxd1 {[%clk 0:09:10]} 29... Qxa2
{[%clk 0:03:23]} 30. Nd6+ {[%clk 0:07:13]} 30... Kg8 {[%clk 0:02:29]} 31. Nxb7
{[%clk 0:05:57]} 31... Be8 {[%clk 0:02:58]} 32. Qc8 {[%clk 0:04:46]} 32... Nf6
{[%clk 0:02:24]} 33. Rd8 {[%clk 0:03:51]} 33... Bf8 {[%clk 0:01:11]} 34. Nd6
{[%clk 0:02:26]} 34... Qb1+ {[%clk 0:00:53]} 35. Kg2 {[%clk 0:02:54]} 35...
Qxb2+ {[%clk 0:00:41]} 36. Kh3 {[%clk 0:03:23]} 36... Bxd6 {[%clk 0:00:33]} 37.
Rxd6 {[%clk 0:02:29]} 37... Qe2 {[%clk 0:00:31]} 38. Qe6+ {[%clk 0:02:08]} 38...
Kg7 {[%clk 0:01:00]} 39. Qxf6+ {[%clk 0:02:28]} 39... Kh6 {[%clk 0:01:29]} 40.
Qh4+ {[%clk 0:02:44]} 40... Kg7 {[%clk 0:01:59]} 41. Qf6+ {[%clk 0:03:03]} 41...
Kh6 {[%clk 0:02:24]} 42. exf5 {[%clk 0:23:43]} 42... Qxf3 {[%clk 0:28:06]} 43.
Qxe5 {[%clk 0:21:13]} 43... Qf1+ {[%clk 0:26:51]} 44. Kh4 {[%clk 0:21:05]} 44...
Qg2 {[%clk 0:26:08]} 45. Qe3+ {[%clk 0:21:20]} 1-0

[Variant "Standard"]
[Site "Europe Echecs"]

[Event "Open Cappelle-la-Grande"]
[Date "2025.02.17"]
[White "Meillon, Judicael"]
[Black "Eugene, Floryan"]
[WhiteElo "2321"]
[BlackElo "2468"]
[Round "4.4.8"]
[Result "1/2-1/2"]
[TimeControl "40/5400+30:1800+30"]

1. Nf3 {[%clk 1:30:59]} 1... g6 {[%clk 1:23:23]} 2. d4 {[%clk 1:29:28]} 2... Bg7
{[%clk 1:23:32]} 3. e4 {[%clk 1:29:53]} 3... d6 {[%clk 1:23:44]} 4. Be2 {[%clk
1:30:16]} 4... Nf6 {[%clk 1:24:05]} 5. Nc3 {[%clk 1:30:42]} 5... O-O {[%clk
1:24:28]} 6. O-O {[%clk 1:31:08]} 6... a6 {[%clk 1:24:54]} 7. Re1 {[%clk
1:27:50]} 7... Nc6 {[%clk 1:22:30]} 8. d5 {[%clk 1:25:32]} 8... Ne5 {[%clk
1:22:53]} 9. Nxe5 {[%clk 1:14:39]} 9... dxe5 {[%clk 1:23:19]} 10. Be3 {[%clk
1:14:19]} 10... Ne8 {[%clk 1:12:18]} 11. Na4 {[%clk 1:07:55]} 11... Nd6 {[%clk
1:12:25]} 12. f3 {[%clk 1:06:28]} 12... e6 {[%clk 1:08:58]} 13. c4 {[%clk
0:58:53]} 13... exd5 {[%clk 0:55:39]} 14. cxd5 {[%clk 0:55:44]} 14... f5 {[%clk
0:55:15]} 15. Qc2 {[%clk 0:50:12]} 15... Rf7 {[%clk 0:53:52]} 16. Nc5 {[%clk
0:48:40]} 16... Qe7 {[%clk 0:52:18]} 17. Rac1 {[%clk 0:45:28]} 17... Bf6 {[%clk
0:45:52]} 18. Ne6 {[%clk 0:31:57]} 18... Bxe6 {[%clk 0:45:31]} 19. dxe6 {[%clk
0:32:26]} 19... Qxe6 {[%clk 0:45:49]} 20. Bc5 {[%clk 0:31:13]} 20... Kg7 {[%clk
0:42:35]} 21. Bxd6 {[%clk 0:29:47]} 21... Qxd6 {[%clk 0:43:02]} 22. exf5 {[%clk
0:28:46]} 22... Bg5 {[%clk 0:38:31]} 23. fxg6 {[%clk 0:24:49]} 23... hxg6 {[%clk
0:38:02]} 24. Rcd1 {[%clk 0:24:07]} 24... Be3+ {[%clk 0:35:41]} 25. Kh1 {[%clk
0:21:30]} 25... Bd4 {[%clk 0:34:37]} 26. Bc4 {[%clk 0:21:47]} 26... Rf5 {[%clk
0:33:52]} 27. Re4 {[%clk 0:19:24]} 27... Rh8 {[%clk 0:33:47]} 28. Rg4 {[%clk
0:18:05]} 28... Rfh5 {[%clk 0:29:42]} 29. h3 {[%clk 0:17:25]} 29... c5 {[%clk
0:28:39]} 30. Qe4 {[%clk 0:16:30]} 30... b5 {[%clk 0:23:13]} 31. Qb7+ {[%clk
0:12:32]} 31... Kh6 {[%clk 0:23:35]} 32. Bd3 {[%clk 0:12:32]} 32... Rg8 {[%clk
0:23:47]} 33. Qf7 {[%clk 0:12:04]} 33... Rg7 {[%clk 0:24:05]} 34. Qe8 {[%clk
0:12:32]} 34... Kh7 {[%clk 0:22:31]} 35. Bc2 {[%clk 0:07:26]} 35... Qf6 {[%clk
0:22:44]} 36. Re1 {[%clk 0:06:52]} 36... Rg8 {[%clk 0:22:10]} 37. Qd7+ {[%clk
0:03:34]} 37... Kh8 {[%clk 0:21:37]} 38. f4 {[%clk 0:03:07]} 38... Bxb2 {[%clk
0:13:54]} 39. f5 {[%clk 0:00:44]} 39... g5 {[%clk 0:13:54]} 40. Rd1 {[%clk
0:00:32]} 40... Bd4 {[%clk 0:13:25]} 41. a4 {[%clk 0:25:45]} 41... Rh7 {[%clk
0:39:56]} 42. Qd5 {[%clk 0:25:13]} 42... Rd8 {[%clk 0:39:26]} 43. Qf3 {[%clk
0:24:03]} 43... Rhd7 {[%clk 0:30:00]} 44. axb5 {[%clk 0:20:08]} 44... axb5
{[%clk 0:30:25]} 45. Qb3 {[%clk 0:20:28]} 45... Rb8 {[%clk 0:29:35]} 46. Bd3
{[%clk 0:17:38]} 46... Be3 {[%clk 0:28:30]} 47. Rb1 {[%clk 0:16:08]} 47... Bf4
{[%clk 0:27:18]} 48. g3 {[%clk 0:11:32]} 48... c4 {[%clk 0:14:46]} 49. Bxc4
{[%clk 0:09:32]} 49... Qc6+ {[%clk 0:14:58]} 50. Kg1 {[%clk 0:09:55]} 50... Rd2
{[%clk 0:15:07]} 51. gxf4 {[%clk 0:10:07]} 51... Qc5+ {[%clk 0:15:26]} 52. Kh1
{[%clk 0:10:34]} 52... Qc6+ {[%clk 0:13:35]} 53. Kg1 {[%clk 0:05:13]} 53... Rbd8
{[%clk 0:13:04]} 54. Bf1 {[%clk 0:05:11]} 1/2-1/2

[Variant "Standard"]
[Site "Europe Echecs"]

[Event "Open Cappelle-la-Grande"]
[Date "2025.02.17"]
[White "Flom, Gabriel"]
[Black "Belkaid, Sohan"]
[WhiteElo "2455"]
[BlackElo "2370"]
[Round "4.4.9"]
[Result "1/2-1/2"]
[TimeControl "40/5400+30:1800+30"]

1. d4 {[%clk 1:30:58]} 1... d5 {[%clk 1:29:43]} 2. c4 {[%clk 1:31:18]} 2... e6
{[%clk 1:29:58]} 3. Nc3 {[%clk 1:31:24]} 3... Nf6 {[%clk 1:28:03]} 4. cxd5
{[%clk 1:31:50]} 4... exd5 {[%clk 1:28:25]} 5. Bg5 {[%clk 1:32:15]} 5... Bb4
{[%clk 1:23:20]} 6. e3 {[%clk 1:31:45]} 6... h6 {[%clk 1:23:30]} 7. Bh4 {[%clk
1:31:52]} 7... g5 {[%clk 1:23:40]} 8. Bg3 {[%clk 1:32:19]} 8... Ne4 {[%clk
1:23:41]} 9. a3 {[%clk 1:31:58]} 9... Bxc3+ {[%clk 1:09:06]} 10. bxc3 {[%clk
1:32:23]} 10... h5 {[%clk 1:09:23]} 11. f3 {[%clk 1:32:50]} 11... Nxg3 {[%clk
1:06:53]} 12. hxg3 {[%clk 1:33:18]} 12... Qd6 {[%clk 1:06:36]} 13. Kf2 {[%clk
1:26:29]} 13... Be6 {[%clk 0:53:26]} 14. Qa4+ {[%clk 1:20:18]} 14... Nc6 {[%clk
0:39:59]} 15. Bb5 {[%clk 1:20:14]} 15... Bd7 {[%clk 0:39:04]} 16. Ne2 {[%clk
1:15:57]} 16... a6 {[%clk 0:33:58]} 17. Rab1 {[%clk 1:11:06]} 17... Kf8 {[%clk
0:32:50]} 18. Bxc6 {[%clk 1:07:11]} 18... Bxc6 {[%clk 0:32:29]} 19. Qb4 {[%clk
1:07:40]} 19... Rd8 {[%clk 0:31:15]} 20. g4 {[%clk 1:05:21]} 20... h4 {[%clk
0:28:27]} 21. g3 {[%clk 1:05:45]} 21... h3 {[%clk 0:27:05]} 22. Rh2 {[%clk
1:05:08]} 22... Kg7 {[%clk 0:26:17]} 23. Rbh1 {[%clk 0:49:28]} 23... Qg6 {[%clk
0:12:06]} 24. Qb1 {[%clk 0:49:53]} 24... Qxb1 {[%clk 0:10:01]} 25. Rxb1 {[%clk
0:50:19]} 25... Rd6 {[%clk 0:10:07]} 26. Ng1 {[%clk 0:50:20]} 26... Rdh6 {[%clk
0:04:18]} 27. f4 {[%clk 0:49:28]} 27... Bb5 {[%clk 0:03:49]} 28. Nf3 {[%clk
0:41:23]} 28... Rc6 {[%clk 0:04:05]} 29. Rc1 {[%clk 0:40:44]} 29... f6 {[%clk
0:04:11]} 30. Ke1 {[%clk 0:40:07]} 30... Bd3 {[%clk 0:02:03]} 31. fxg5 {[%clk
0:39:53]} 31... Be4 {[%clk 0:00:12]} 1/2-1/2

[Variant "Standard"]
[Site "Europe Echecs"]

[Event "Open Cappelle-la-Grande"]
[Date "2025.02.17"]
[White "Akhvlediani, Irakli"]
[Black "Duboue, Peio"]
[WhiteElo "2369"]
[BlackElo "2440"]
[Round "4.4.10"]
[Result "1/2-1/2"]
[TimeControl "40/5400+30:1800+30"]

1. c4 {[%clk 1:26:41]} 1... e5 {[%clk 1:30:46]} 2. g3 {[%clk 1:26:47]} 2... Nf6
{[%clk 1:31:02]} 3. Bg2 {[%clk 1:26:55]} 3... c6 {[%clk 1:31:06]} 4. Nf3 {[%clk
1:22:04]} 4... e4 {[%clk 1:31:30]} 5. Nd4 {[%clk 1:22:32]} 5... d5 {[%clk
1:30:51]} 6. cxd5 {[%clk 1:22:57]} 6... Qxd5 {[%clk 1:31:16]} 7. Nc2 {[%clk
1:23:22]} 7... Qh5 {[%clk 1:26:22]} 8. h3 {[%clk 1:21:34]} 8... Qg6 {[%clk
1:25:59]} 9. Nc3 {[%clk 1:21:40]} 9... Bd6 {[%clk 1:23:16]} 10. Ne3 {[%clk
1:16:09]} 10... O-O {[%clk 1:21:41]} 11. d3 {[%clk 1:08:53]} 11... exd3 {[%clk
1:21:42]} 12. Qxd3 {[%clk 1:09:19]} 12... Qxd3 {[%clk 1:21:47]} 13. exd3 {[%clk
1:09:45]} 13... Na6 {[%clk 1:19:30]} 14. O-O {[%clk 1:01:34]} 14... Be6 {[%clk
1:18:22]} 15. d4 {[%clk 0:52:07]} 15... Nc7 {[%clk 1:05:48]} 16. g4 {[%clk
0:39:44]} 16... Rfe8 {[%clk 0:58:13]} 17. g5 {[%clk 0:34:49]} 17... Nfd5 {[%clk
0:57:51]} 18. Nexd5 {[%clk 0:35:14]} 18... Nxd5 {[%clk 0:53:22]} 19. Nxd5 {[%clk
0:35:36]} 19... Bxd5 {[%clk 0:53:46]} 20. Bxd5 {[%clk 0:36:02]} 20... cxd5
{[%clk 0:54:13]} 21. Be3 {[%clk 0:36:28]} 21... Rac8 {[%clk 0:47:10]} 22. Rac1
{[%clk 0:36:43]} 22... Kf8 {[%clk 0:38:39]} 23. Rxc8 {[%clk 0:30:15]} 23... Rxc8
{[%clk 0:38:45]} 24. Rc1 {[%clk 0:30:42]} 24... Rxc1+ {[%clk 0:31:49]} 25. Bxc1
{[%clk 0:31:08]} 25... Ke7 {[%clk 0:32:16]} 26. Kg2 {[%clk 0:31:34]} 26... Ke6
{[%clk 0:32:43]} 27. f4 {[%clk 0:31:58]} 27... Kf5 {[%clk 0:32:00]} 28. Kf3
{[%clk 0:32:25]} 28... g6 {[%clk 0:22:54]} 29. Bd2 {[%clk 0:32:27]} 29... Bf8
{[%clk 0:17:37]} 30. Be3 {[%clk 0:32:16]} 30... h6 {[%clk 0:17:20]} 31. gxh6
{[%clk 0:32:00]} 31... Bxh6 {[%clk 0:17:45]} 32. Bd2 {[%clk 0:32:28]} 32... Bf8
{[%clk 0:17:28]} 33. Be3 {[%clk 0:32:51]} 33... Bb4 {[%clk 0:13:50]} 34. Bc1
{[%clk 0:33:11]} 34... b5 {[%clk 0:13:38]} 35. Be3 {[%clk 0:33:22]} 35... a5
{[%clk 0:13:37]} 36. b3 {[%clk 0:26:32]} 36... a4 {[%clk 0:13:10]} 37. bxa4
{[%clk 0:26:41]} 37... bxa4 {[%clk 0:13:35]} 38. Bc1 {[%clk 0:27:04]} 38... Bc3
{[%clk 0:12:08]} 39. Be3 {[%clk 0:27:30]} 39... Bb2 {[%clk 0:11:41]} 40. Bf2
{[%clk 0:27:57]} 40... Bc1 {[%clk 0:10:57]} 41. Be3 {[%clk 0:24:22]} 41... Ba3
{[%clk 0:09:32]} 42. Bd2 {[%clk 0:24:34]} 42... Be7 {[%clk 0:09:44]} 43. Bc1
{[%clk 0:24:25]} 43... Bd6 {[%clk 0:01:57]} 44. Bd2 {[%clk 0:24:17]} 44... Bf8
{[%clk 0:02:19]} 45. Bc1 {[%clk 0:24:15]} 45... Be7 {[%clk 0:02:01]} 46. Bd2
{[%clk 0:24:24]} 46... Ke6 {[%clk 0:02:16]} 47. Kg4 {[%clk 0:06:58]} 47... Bf6
{[%clk 0:30:00]} 48. Bc3 {[%clk 0:36:32]} 48... Kd7 {[%clk 0:26:19]} 49. Kf3
{[%clk 0:36:17]} 49... Kc6 {[%clk 0:26:10]} 50. Ke3 {[%clk 0:36:27]} 50... Kb5
{[%clk 0:25:22]} 51. Kd3 {[%clk 0:36:53]} 51... Be7 {[%clk 0:16:30]} 52. f5
{[%clk 0:10:05]} 52... gxf5 {[%clk 0:16:55]} 53. Be1 {[%clk 0:09:39]} 53... Kc6
{[%clk 0:16:10]} 54. Ke3 {[%clk 0:02:53]} 54... Kd7 {[%clk 0:05:42]} 55. Kf4
{[%clk 0:02:32]} 55... Ke6 {[%clk 0:06:10]} 56. Bf2 {[%clk 0:02:14]} 56... Bb4
{[%clk 0:03:33]} 57. Be3 {[%clk 0:02:41]} 57... Kf6 {[%clk 0:03:18]} 58. Kf3
{[%clk 0:02:38]} 58... Kg6 {[%clk 0:03:10]} 59. Kf4 {[%clk 0:02:22]} 59... Bd6+
{[%clk 0:03:33]} 60. Kf3 {[%clk 0:02:49]} 60... Be7 {[%clk 0:03:22]} 61. Bf2
{[%clk 0:02:54]} 61... Bg5 {[%clk 0:03:21]} 62. Bg3 {[%clk 0:03:07]} 62... Bc1
{[%clk 0:02:56]} 63. Bf4 {[%clk 0:02:30]} 63... Bb2 {[%clk 0:03:04]} 64. Be3
{[%clk 0:02:58]} 64... Ba3 {[%clk 0:03:04]} 65. Kf4 {[%clk 0:03:13]} 65... Bd6+
{[%clk 0:03:29]} 66. Kf3 {[%clk 0:03:41]} 66... Kh5 {[%clk 0:03:21]} 67. Bf2
{[%clk 0:03:36]} 67... Kg5 {[%clk 0:02:55]} 68. Be1 {[%clk 0:03:37]} 68... Bf8
{[%clk 0:02:21]} 69. Bf2 {[%clk 0:03:53]} 69... f4 {[%clk 0:01:59]} 70. Be1
{[%clk 0:01:46]} 70... Bg7 {[%clk 0:02:08]} 71. Bf2 {[%clk 0:02:14]} 71... Kf5
{[%clk 0:02:17]} 72. Bg1 {[%clk 0:02:37]} 72... Bh8 {[%clk 0:02:11]} 73. Bf2
{[%clk 0:02:43]} 73... Bf6 {[%clk 0:02:27]} 74. Bg1 {[%clk 0:02:53]} 74... Bh4
{[%clk 0:02:37]} 75. Bh2 {[%clk 0:03:09]} 75... Bf6 {[%clk 0:01:34]} 76. Bg1
{[%clk 0:03:35]} 76... Bd8 {[%clk 0:01:38]} 77. Bf2 {[%clk 0:03:31]} 77... Ba5
{[%clk 0:01:36]} 78. Bg1 {[%clk 0:03:26]} 78... Bd2 {[%clk 0:01:47]} 79. Bf2
{[%clk 0:03:52]} 79... Kg5 {[%clk 0:01:26]} 80. Ke2 {[%clk 0:03:45]} 80... Bc1
{[%clk 0:01:50]} 81. Kf3 {[%clk 0:03:58]} 81... Kh5 {[%clk 0:00:41]} 82. Ke2
{[%clk 0:04:07]} 82... Kg6 {[%clk 0:00:37]} 83. Kf3 {[%clk 0:04:28]} 83... Kf5
{[%clk 0:00:57]} 84. Bg1 {[%clk 0:04:52]} 84... Bb2 {[%clk 0:00:49]} 85. Bf2
{[%clk 0:05:15]} 85... Bc3 {[%clk 0:01:18]} 86. Bg1 {[%clk 0:05:38]} 86... Ba5
{[%clk 0:01:43]} 87. Bf2 {[%clk 0:05:58]} 87... Kg5 {[%clk 0:00:55]} 88. Ke2
{[%clk 0:06:04]} 88... Bb4 {[%clk 0:00:44]} 89. Kf3 {[%clk 0:06:29]} 89... Bc3
{[%clk 0:01:13]} 90. Ke2 {[%clk 0:06:50]} 90... f6 {[%clk 0:01:00]} 91. Kf3
{[%clk 0:07:13]} 91... Bd2 {[%clk 0:01:01]} 92. Ke2 {[%clk 0:07:33]} 92... Bc1
{[%clk 0:01:30]} 93. Kf3 {[%clk 0:07:56]} 93... Kf5 {[%clk 0:00:59]} 94. Bg1
{[%clk 0:08:22]} 94... Bd2 {[%clk 0:00:56]} 95. Bf2 {[%clk 0:08:48]} 95... Bc3
{[%clk 0:01:22]} 96. Bg1 {[%clk 0:09:15]} 96... Ba1 {[%clk 0:00:45]} 97. Bf2
{[%clk 0:09:37]} 97... Bb2 {[%clk 0:00:59]} 98. Bg1 {[%clk 0:10:03]} 98... a3
{[%clk 0:01:04]} 99. Bf2 {[%clk 0:10:10]} 99... Kg5 {[%clk 0:01:18]} 100. Ke2
{[%clk 0:10:33]} 100... Bc1 {[%clk 0:01:37]} 101. Kf3 {[%clk 0:10:56]} 101...
Be3 {[%clk 0:00:41]} 102. Bxe3 {[%clk 0:10:05]} 102... fxe3 {[%clk 0:01:11]}
103. Kxe3 {[%clk 0:10:24]} 103... Kh4 {[%clk 0:01:37]} 104. Kf4 {[%clk 0:10:45]}
104... Kxh3 {[%clk 0:02:03]} 105. Kf5 {[%clk 0:11:11]} 105... Kg3 {[%clk
0:02:21]} 106. Ke6 {[%clk 0:11:25]} 106... Kg4 {[%clk 0:02:16]} 107. Kxd5 {[%clk
0:11:48]} 107... f5 {[%clk 0:02:43]} 108. Kc5 {[%clk 0:10:38]} 108... f4 {[%clk
0:03:07]} 109. d5 {[%clk 0:11:07]} 109... f3 {[%clk 0:03:22]} 110. d6 {[%clk
0:11:34]} 110... f2 {[%clk 0:03:49]} 111. d7 {[%clk 0:12:03]} 111... f1=Q {[%clk
0:04:14]} 112. d8=Q {[%clk 0:12:29]} 112... Qc1+ {[%clk 0:04:17]} 113. Kb4
{[%clk 0:12:48]} 113... Qb2+ {[%clk 0:04:40]} 114. Ka4 {[%clk 0:13:16]} 114...
Qxa2 {[%clk 0:05:05]} 115. Qd4+ {[%clk 0:13:37]} 115... Kf3 {[%clk 0:05:29]}
116. Qc3+ {[%clk 0:14:05]} 116... Ke2 {[%clk 0:05:55]} 117. Qxa3 {[%clk
0:14:33]} 117... Qxa3+ {[%clk 0:06:21]} 118. Kxa3 {[%clk 0:15:00]} 1/2-1/2

[Variant "Standard"]
[Site "Europe Echecs"]

[Event "Open Cappelle-la-Grande"]
[Date "2025.02.17"]
[White "Daeschler, Florian"]
[Black "Nikolov, Momchil"]
[WhiteElo "2258"]
[BlackElo "2433"]
[Round "4.4.11"]
[Result "1/2-1/2"]
[TimeControl "40/5400+30:1800+30"]

1. e4 {[%clk 1:30:57]} 1... c5 {[%clk 1:25:52]} 2. Nf3 {[%clk 1:31:19]} 2... e6
{[%clk 1:25:45]} 3. d4 {[%clk 1:31:44]} 3... cxd4 {[%clk 1:26:10]} 4. Nxd4
{[%clk 1:32:10]} 4... Nc6 {[%clk 1:26:25]} 5. Nc3 {[%clk 1:32:29]} 5... Qc7
{[%clk 1:26:46]} 6. Ncb5 {[%clk 1:32:38]} 6... Qb8 {[%clk 1:23:56]} 7. Bd3
{[%clk 1:32:36]} 7... Ne5 {[%clk 1:13:21]} 8. O-O {[%clk 1:24:53]} 8... a6
{[%clk 1:13:24]} 9. Nc3 {[%clk 1:25:15]} 9... b5 {[%clk 1:12:24]} 10. Re1 {[%clk
1:08:51]} 10... Nxd3 {[%clk 1:07:40]} 11. Qxd3 {[%clk 1:08:13]} 11... Bd6 {[%clk
1:02:58]} 12. Nf3 {[%clk 0:57:30]} 12... Ne7 {[%clk 1:00:40]} 13. e5 {[%clk
0:56:12]} 13... Bb4 {[%clk 0:58:32]} 14. Bd2 {[%clk 0:46:05]} 14... Nf5 {[%clk
0:52:11]} 15. Nd4 {[%clk 0:34:31]} 15... Nxd4 {[%clk 0:50:44]} 16. Qxd4 {[%clk
0:34:49]} 16... Be7 {[%clk 0:49:58]} 17. Ne4 {[%clk 0:30:05]} 17... Bb7 {[%clk
0:42:16]} 18. Bb4 {[%clk 0:25:45]} 18... Bxb4 {[%clk 0:36:06]} 19. Qxb4 {[%clk
0:26:09]} 19... Bxe4 {[%clk 0:36:30]} 20. Rxe4 {[%clk 0:26:31]} 20... a5 {[%clk
0:32:17]} 21. Qc5 {[%clk 0:22:51]} 21... Qb7 {[%clk 0:31:52]} 22. Qe3 {[%clk
0:19:40]} 22... O-O {[%clk 0:27:54]} 23. Rd1 {[%clk 0:19:05]} 23... Rac8 {[%clk
0:26:15]} 24. c3 {[%clk 0:18:29]} 24... Rc4 {[%clk 0:20:21]} 25. Red4 {[%clk
0:17:01]} 25... Rxd4 {[%clk 0:20:12]} 26. Rxd4 {[%clk 0:12:28]} 26... Rc8 {[%clk
0:16:06]} 27. Qd2 {[%clk 0:12:37]} 27... Rc7 {[%clk 0:12:35]} 28. h4 {[%clk
0:09:19]} 28... h6 {[%clk 0:12:20]} 29. Rg4 {[%clk 0:08:35]} 29... Rc4 {[%clk
0:11:42]} 30. Rxc4 {[%clk 0:04:10]} 30... bxc4 {[%clk 0:12:06]} 31. g3 {[%clk
0:04:24]} 31... Qb5 {[%clk 0:09:36]} 32. Kf1 {[%clk 0:02:59]} 32... Qa4 {[%clk
0:07:40]} 33. a3 {[%clk 0:03:02]} 33... Qb5 {[%clk 0:07:11]} 34. Kg1 {[%clk
0:02:49]} 34... Kf8 {[%clk 0:07:13]} 35. Qd6+ {[%clk 0:02:20]} 35... Kg8 {[%clk
0:04:53]} 36. Qd2 {[%clk 0:02:16]} 36... g6 {[%clk 0:02:59]} 37. Qe2 {[%clk
0:01:39]} 37... Qd5 {[%clk 0:02:57]} 38. Qe3 {[%clk 0:01:46]} 38... Qb5 {[%clk
0:02:29]} 39. Qe2 {[%clk 0:01:56]} 39... Kg7 {[%clk 0:02:40]} 40. b4 {[%clk
0:02:08]} 40... axb4 {[%clk 0:01:32]} 41. axb4 {[%clk 0:01:42]} 41... Qd5 {[%clk
0:01:49]} 42. Qe3 {[%clk 0:29:14]} 42... Qd1+ {[%clk 0:31:42]} 43. Kg2 {[%clk
0:29:07]} 43... Qd5+ {[%clk 0:31:53]} 44. Kg1 {[%clk 0:27:16]} 44... Qd1+ {[%clk
0:31:54]} 45. Kg2 {[%clk 0:27:32]} 1/2-1/2

[Variant "Standard"]
[Site "Europe Echecs"]